[Event "December 12 Late 2023"]
[Site "https://www.chess.com"]
[Date "2023.12.12"]
[Round "7"]
[White "Popov, Konstantin"]
[Black "Krallis, Christos"]
[Result "1-0"]
[Board "24"]
[TimeControl "180+1"]
[WhiteFideId "34137910"]
[BlackFideId "4298896"]
[WhiteElo "2862"]
[BlackElo "2679"]
[WhiteTeam "FID"]
[BlackTeam "GRE"]
[WhiteClock "0:00:39"]
[BlackClock "0:00:00"]

1. e4 {[%clk 0:03:00]}  d6 {[%clk 0:02:57]} 2. d4 {[%clk 0:03:00]}  Nf6 {[%clk 0:02:55]} 3. Nc3 {[%clk 0:03:01]}  g6 {[%clk 0:02:54]} 4. Nf3 {[%clk 0:03:00]}  Bg7 {[%clk 0:02:53]} 5. h3 {[%clk 0:02:59]}  O-O {[%clk 0:02:52]} 6. Bd3 {[%clk 0:02:59]}  c5 {[%clk 0:02:51]} 7. dxc5 {[%clk 0:02:59]}  dxc5 {[%clk 0:02:51]} 8. O-O {[%clk 0:02:59]}  Nc6 {[%clk 0:02:51]} 9. Qe2 {[%clk 0:02:59]}  Nd7 {[%clk 0:02:40]} 10. Bf4 {[%clk 0:02:57]}  Nd4 {[%clk 0:02:38]} 11. Nxd4 {[%clk 0:02:55]}  cxd4 {[%clk 0:02:38]} 12. Nd1 {[%clk 0:02:54]}  Nc5 {[%clk 0:02:33]} 13. Bd2 {[%clk 0:02:50]}  Nxd3 {[%clk 0:02:16]} 14. cxd3 {[%clk 0:02:51]}  b6 {[%clk 0:02:12]} 15. f4 {[%clk 0:02:51]}  Bb7 {[%clk 0:02:08]} 16. f5 {[%clk 0:02:49]}  Rc8 {[%clk 0:02:07]} 17. Rc1 {[%clk 0:02:47]}  Rxc1 {[%clk 0:02:04]} 18. Bxc1 {[%clk 0:02:47]}  Qd7 {[%clk 0:02:03]} 19. Nf2 {[%clk 0:02:44]}  Rc8 {[%clk 0:01:59]} 20. Ng4 {[%clk 0:02:41]}  h5 {[%clk 0:01:58]} 21. Nh6+ {[%clk 0:02:38]}  Bxh6 {[%clk 0:01:51]} 22. Bxh6 {[%clk 0:02:39]}  Qc6 {[%clk 0:01:27]} 23. Bg5 {[%clk 0:02:23]}  Qc2 {[%clk 0:01:12]} 24. Qf3 {[%clk 0:02:22]}  Qc6 {[%clk 0:00:17]} 25. Qg3 {[%clk 0:02:19]}  f6 {[%clk 0:00:15]} 26. fxg6 {[%clk 0:01:59]}  Kg7 {[%clk 0:00:10]} 27. Bf4 {[%clk 0:01:46]}  Qe8 {[%clk 0:00:09]} 28. Qh4 {[%clk 0:01:40]}  Qxg6 {[%clk 0:00:09]} 29. Rf3 {[%clk 0:01:40]}  Kf7 {[%clk 0:00:09]} 30. Rg3 {[%clk 0:01:34]}  Qh7 {[%clk 0:00:09]} 31. Rf3 {[%clk 0:01:11]}  Rg8 {[%clk 0:00:08]} 32. Qf2 {[%clk 0:01:09]}  Qg6 {[%clk 0:00:06]} 33. Rg3 {[%clk 0:01:08]}  Qh7 {[%clk 0:00:06]} 34. Qxd4 {[%clk 0:01:08]}  Rxg3 {[%clk 0:00:04]} 35. Bxg3 {[%clk 0:01:09]}  Qh6 {[%clk 0:00:03]} 36. Qd7 {[%clk 0:00:56]}  Qe3+ {[%clk 0:00:03]} 37. Bf2 {[%clk 0:00:53]}  Qc1+ {[%clk 0:00:02]} 38. Kh2 {[%clk 0:00:54]}  Qc6 {[%clk 0:00:03]} 39. Qd4 {[%clk 0:00:49]}  Qd6+ {[%clk 0:00:03]} 40. Qxd6 {[%clk 0:00:49]}  exd6 {[%clk 0:00:04]} 41. Kg3 {[%clk 0:00:49]}  Ba6 {[%clk 0:00:04]} 42. d4 {[%clk 0:00:49]}  Bd3 {[%clk 0:00:04]} 43. Kf4 {[%clk 0:00:49]}  d5 {[%clk 0:00:05]} 44. exd5 {[%clk 0:00:47]}  Bf1 {[%clk 0:00:05]} 45. g4 {[%clk 0:00:39]}  hxg4 {[%clk 0:00:05]} 46. Kxg4 {[%clk 0:00:40]}  Bg2 {[%clk 0:00:04]} 47. d6 {[%clk 0:00:40]}  Ke6 {[%clk 0:00:05]} 48. Bg3 {[%clk 0:00:39]}  Be4 {[%clk 0:00:04]} 49. h4 {[%clk 0:00:39]}  a5 {[%clk 0:00:03]} 50. a3 {[%clk 0:00:38]}  b5 {[%clk 0:00:03]} 51. h5 {[%clk 0:00:38]}  b4 {[%clk 0:00:03]} 52. axb4 {[%clk 0:00:37]}  axb4 {[%clk 0:00:04]} 53. h6 {[%clk 0:00:37]}  Bh7 {[%clk 0:00:04]} 54. Bf4 {[%clk 0:00:38]}  Kd7 {[%clk 0:00:04]} 55. Kf3 {[%clk 0:00:38]}  Ke6 {[%clk 0:00:05]} 56. Ke3 {[%clk 0:00:39]}  Kd7 {[%clk 0:00:05]} 57. d5 {[%clk 0:00:38]}  Bg8 {[%clk 0:00:04]} 58. Kd4 {[%clk 0:00:38]}  b3 {[%clk 0:00:05]} 59. Kc4 {[%clk 0:00:38]}  f5 {[%clk 0:00:05]} 60. Kxb3 {[%clk 0:00:36]}  Bxd5+ {[%clk 0:00:05]} 61. Kc3 {[%clk 0:00:37]}  Bg8 {[%clk 0:00:05]} 62. Kd4 {[%clk 0:00:37]}  Kc6 {[%clk 0:00:05]} 63. Ke5 {[%clk 0:00:38]}  Bh7 {[%clk 0:00:04]} 64. Kf6 {[%clk 0:00:38]}  Bg8 {[%clk 0:00:00]} 65. Kg7 {[%clk 0:00:39]} 1-0

[Event "December 12 Late 2023"]
[Site "https://www.chess.com"]
[Date "2023.12.12"]
[Round "7"]
[White "Nagare Kaivalya Sandip"]
[Black "Kamsky, Gata"]
[Result "0-1"]
[Board "25"]
[TimeControl "180+1"]
[WhiteFideId "25957929"]
[BlackFideId "2000024"]
[WhiteElo "2677"]
[BlackElo "2858"]
[WhiteTeam "IND"]
[BlackTeam "USA"]
[WhiteClock "0:00:00"]
[BlackClock "0:00:31"]

1. e4 {[%clk 0:03:00]}  c6 {[%clk 0:02:51]} 2. d4 {[%clk 0:02:55]}  d5 {[%clk 0:02:47]} 3. e5 {[%clk 0:02:55]}  Bf5 {[%clk 0:02:45]} 4. h4 {[%clk 0:02:55]}  h6 {[%clk 0:02:44]} 5. c4 {[%clk 0:02:55]}  e6 {[%clk 0:02:41]} 6. Nc3 {[%clk 0:02:55]}  Ne7 {[%clk 0:02:39]} 7. Nge2 {[%clk 0:02:53]}  Nd7 {[%clk 0:02:24]} 8. Ng3 {[%clk 0:02:53]}  Bg6 {[%clk 0:02:23]} 9. h5 {[%clk 0:02:52]}  Bh7 {[%clk 0:02:22]} 10. Bd3 {[%clk 0:02:34]}  Bxd3 {[%clk 0:02:20]} 11. Qxd3 {[%clk 0:02:34]}  dxc4 {[%clk 0:02:19]} 12. Qxc4 {[%clk 0:02:30]}  Nb6 {[%clk 0:02:17]} 13. Qd3 {[%clk 0:02:30]}  Ned5 {[%clk 0:02:17]} 14. O-O {[%clk 0:02:28]}  Be7 {[%clk 0:02:15]} 15. Nge4 {[%clk 0:02:28]}  O-O {[%clk 0:02:12]} 16. Qg3 {[%clk 0:02:28]}  Kh8 {[%clk 0:02:10]} 17. f4 {[%clk 0:02:24]}  f5 {[%clk 0:02:05]} 18. Nc5 {[%clk 0:01:55]}  Nxc3 {[%clk 0:02:02]} 19. bxc3 {[%clk 0:01:51]}  Qd5 {[%clk 0:01:51]} 20. Nxb7 {[%clk 0:01:46]}  Rab8 {[%clk 0:01:46]} 21. Nd6 {[%clk 0:01:38]}  Bxd6 {[%clk 0:01:45]} 22. exd6 {[%clk 0:01:39]}  Nc4 {[%clk 0:01:45]} 23. Qd3 {[%clk 0:01:26]}  Rfd8 {[%clk 0:01:37]} 24. Be3 {[%clk 0:01:03]}  Nxd6 {[%clk 0:01:34]} 25. a4 {[%clk 0:00:54]}  Ne4 {[%clk 0:01:31]} 26. c4 {[%clk 0:00:52]}  Qd7 {[%clk 0:01:30]} 27. Rab1 {[%clk 0:00:50]}  Qf7 {[%clk 0:01:24]} 28. g4 {[%clk 0:00:42]}  Nf6 {[%clk 0:01:14]} 29. gxf5 {[%clk 0:00:42]}  exf5 {[%clk 0:01:14]} 30. Qxf5 {[%clk 0:00:32]}  Qxc4 {[%clk 0:01:13]} 31. Rbc1 {[%clk 0:00:18]}  Qxa4 {[%clk 0:01:10]} 32. Qg6 {[%clk 0:00:16]}  Re8 {[%clk 0:01:05]} 33. Rf3 {[%clk 0:00:14]}  Qb3 {[%clk 0:00:48]} 34. Rg3 {[%clk 0:00:14]}  Rb7 {[%clk 0:00:45]} 35. Bf2 {[%clk 0:00:12]}  Qf7 {[%clk 0:00:44]} 36. Rxc6 {[%clk 0:00:10]}  Nxh5 {[%clk 0:00:43]} 37. Qxf7 {[%clk 0:00:10]}  Rxf7 {[%clk 0:00:41]} 38. Rf3 {[%clk 0:00:10]}  Nxf4 {[%clk 0:00:41]} 39. Kh2 {[%clk 0:00:10]}  Ref8 {[%clk 0:00:38]} 40. Bg3 {[%clk 0:00:09]}  Kh7 {[%clk 0:00:35]} 41. Ra6 {[%clk 0:00:08]}  Nd5 {[%clk 0:00:33]} 42. Rxf7 {[%clk 0:00:08]}  Rxf7 {[%clk 0:00:33]} 43. Ra5 {[%clk 0:00:07]}  Rd7 {[%clk 0:00:33]} 44. Kg2 {[%clk 0:00:00]}  Kg6 {[%clk 0:00:31]} 0-1

[Event "December 12 Late 2023"]
[Site "https://www.chess.com"]
[Date "2023.12.12"]
[Round "7"]
[White "Gabuzyan, Hovhannes"]
[Black "Goltsev, Dmitry"]
[Result "1/2-1/2"]
[Board "26"]
[TimeControl "180+1"]
[WhiteFideId "13303732"]
[BlackFideId "24176710"]
[WhiteElo "2839"]
[BlackElo "2669"]
[WhiteTeam "ARM"]
[BlackTeam "RUS"]
[WhiteClock "0:00:06"]
[BlackClock "0:00:05"]

1. e4 {[%clk 0:03:00]}  e6 {[%clk 0:03:00]} 2. d4 {[%clk 0:03:00]}  d5 {[%clk 0:03:01]} 3. Nc3 {[%clk 0:03:00]}  c5 {[%clk 0:03:01]} 4. exd5 {[%clk 0:02:59]}  exd5 {[%clk 0:03:01]} 5. Nf3 {[%clk 0:02:59]}  Nf6 {[%clk 0:03:01]} 6. Bb5+ {[%clk 0:02:59]}  Nc6 {[%clk 0:03:00]} 7. O-O {[%clk 0:02:58]}  Be7 {[%clk 0:03:01]} 8. dxc5 {[%clk 0:02:58]}  Bxc5 {[%clk 0:03:02]} 9. Re1+ {[%clk 0:02:58]}  Be6 {[%clk 0:03:02]} 10. Ng5 {[%clk 0:02:55]}  O-O {[%clk 0:03:01]} 11. Bd3 {[%clk 0:02:37]}  Bxf2+ {[%clk 0:02:47]} 12. Kxf2 {[%clk 0:02:31]}  Ng4+ {[%clk 0:02:48]} 13. Kg3 {[%clk 0:02:29]}  h5 {[%clk 0:02:33]} 14. h3 {[%clk 0:02:06]}  Qd6+ {[%clk 0:02:03]} 15. Bf4 {[%clk 0:01:59]}  h4+ {[%clk 0:01:56]} 16. Kxh4 {[%clk 0:01:42]}  Qxf4 {[%clk 0:01:55]} 17. Qf3 {[%clk 0:00:52]}  Qd6 {[%clk 0:00:49]} 18. hxg4 {[%clk 0:00:40]}  f6 {[%clk 0:00:34]} 19. Nxe6 {[%clk 0:00:31]}  Qh2+ {[%clk 0:00:32]} 20. Qh3 {[%clk 0:00:31]}  g5+ {[%clk 0:00:32]} 21. Kh5 {[%clk 0:00:31]}  Qd6 {[%clk 0:00:03]} 22. Nxf8 {[%clk 0:00:10]}  Rxf8 {[%clk 0:00:01]} 23. Kg6 {[%clk 0:00:08]}  Ne7+ {[%clk 0:00:01]} 24. Rxe7 {[%clk 0:00:07]}  Qxe7 {[%clk 0:00:02]} 25. Qh6 {[%clk 0:00:04]}  Qf7+ {[%clk 0:00:03]} 26. Kf5 {[%clk 0:00:05]}  Qd7+ {[%clk 0:00:03]} 27. Kg6 {[%clk 0:00:05]}  Qf7+ {[%clk 0:00:04]} 28. Kf5 {[%clk 0:00:05]}  Qd7+ {[%clk 0:00:04]} 29. Kg6 {[%clk 0:00:05]}  Qe8+ {[%clk 0:00:05]} 30. Kf5 {[%clk 0:00:04]}  Qe5+ {[%clk 0:00:05]} 31. Kg6 {[%clk 0:00:05]}  Qe8+ {[%clk 0:00:05]} 32. Kf5 {[%clk 0:00:05]}  Qe5+ {[%clk 0:00:05]} 33. Kg6 {[%clk 0:00:06]}  Qe8+ {[%clk 0:00:05]} 1/2-1/2

[Event "December 12 Late 2023"]
[Site "https://www.chess.com"]
[Date "2023.12.12"]
[Round "7"]
[White "Karacsonyi, Gellert"]
[Black "Hong, Andrew"]
[Result "0-1"]
[Board "27"]
[TimeControl "180+1"]
[WhiteFideId "764620"]
[BlackFideId "2099438"]
[WhiteElo "2667"]
[BlackElo "2820"]
[WhiteTeam "HUN"]
[BlackTeam "USA"]
[WhiteClock "0:00:00"]
[BlackClock "0:00:02"]

1. e4 {[%clk 0:03:00]}  e5 {[%clk 0:02:59]} 2. Nf3 {[%clk 0:03:00]}  Nc6 {[%clk 0:03:00]} 3. Bb5 {[%clk 0:02:59]}  a6 {[%clk 0:03:00]} 4. Bxc6 {[%clk 0:03:00]}  dxc6 {[%clk 0:03:00]} 5. O-O {[%clk 0:03:00]}  f6 {[%clk 0:03:00]} 6. d4 {[%clk 0:03:01]}  exd4 {[%clk 0:03:01]} 7. Nxd4 {[%clk 0:03:01]}  Bd6 {[%clk 0:02:58]} 8. Be3 {[%clk 0:02:55]}  Ne7 {[%clk 0:02:58]} 9. Nd2 {[%clk 0:02:54]}  O-O {[%clk 0:02:58]} 10. Nc4 {[%clk 0:02:54]}  Bc5 {[%clk 0:02:56]} 11. Nb3 {[%clk 0:02:51]}  Bxe3 {[%clk 0:02:54]} 12. Nxe3 {[%clk 0:02:50]}  b6 {[%clk 0:02:52]} 13. Qxd8 {[%clk 0:02:48]}  Rxd8 {[%clk 0:02:53]} 14. Rad1 {[%clk 0:02:47]}  Be6 {[%clk 0:02:51]} 15. Nd4 {[%clk 0:02:40]}  Bf7 {[%clk 0:02:44]} 16. a3 {[%clk 0:02:39]}  g6 {[%clk 0:02:40]} 17. Nf3 {[%clk 0:02:33]}  h6 {[%clk 0:02:21]} 18. Rxd8+ {[%clk 0:02:32]}  Rxd8 {[%clk 0:02:21]} 19. Rd1 {[%clk 0:02:33]}  Rc8 {[%clk 0:02:14]} 20. Kf1 {[%clk 0:02:30]}  c5 {[%clk 0:02:12]} 21. Ke2 {[%clk 0:02:29]}  Be6 {[%clk 0:02:12]} 22. Ne1 {[%clk 0:02:25]}  Nc6 {[%clk 0:02:11]} 23. c3 {[%clk 0:02:25]}  Re8 {[%clk 0:02:07]} 24. f3 {[%clk 0:02:24]}  Na5 {[%clk 0:02:00]} 25. Nd3 {[%clk 0:02:21]}  Bb3 {[%clk 0:01:55]} 26. Rd2 {[%clk 0:02:19]}  f5 {[%clk 0:01:54]} 27. Nf2 {[%clk 0:01:40]}  Re7 {[%clk 0:01:18]} 28. g3 {[%clk 0:01:37]}  Kf7 {[%clk 0:01:14]} 29. h4 {[%clk 0:01:34]}  Nc4 {[%clk 0:00:40]} 30. Nxc4 {[%clk 0:01:34]}  Bxc4+ {[%clk 0:00:41]} 31. Ke3 {[%clk 0:01:34]}  a5 {[%clk 0:00:41]} 32. Rd8 {[%clk 0:01:32]}  a4 {[%clk 0:00:40]} 33. Kf4 {[%clk 0:01:32]}  Be6 {[%clk 0:00:35]} 34. g4 {[%clk 0:01:29]}  fxg4 {[%clk 0:00:34]} 35. Nxg4 {[%clk 0:01:27]}  Kg7 {[%clk 0:00:33]} 36. Ne5 {[%clk 0:01:23]}  Bb3 {[%clk 0:00:32]} 37. Rd7 {[%clk 0:01:18]}  Rxd7 {[%clk 0:00:25]} 38. Nxd7 {[%clk 0:01:19]}  Kf7 {[%clk 0:00:25]} 39. Ne5+ {[%clk 0:01:13]}  Kg7 {[%clk 0:00:26]} 40. Ng4 {[%clk 0:01:06]}  Be6 {[%clk 0:00:25]} 41. Ke5 {[%clk 0:00:50]}  Bb3 {[%clk 0:00:24]} 42. Nf6 {[%clk 0:00:48]}  Kf7 {[%clk 0:00:07]} 43. f4 {[%clk 0:00:48]}  c6 {[%clk 0:00:04]} 44. Ng4 {[%clk 0:00:46]}  h5 {[%clk 0:00:04]} 45. Nf2 {[%clk 0:00:46]}  Ke7 {[%clk 0:00:04]} 46. Nh1 {[%clk 0:00:39]}  Bd1 {[%clk 0:00:04]} 47. Ng3 {[%clk 0:00:39]}  Bg4 {[%clk 0:00:04]} 48. f5 {[%clk 0:00:31]}  g5 {[%clk 0:00:04]} 49. hxg5 {[%clk 0:00:27]}  h4 {[%clk 0:00:05]} 50. Nf1 {[%clk 0:00:27]}  Kf7 {[%clk 0:00:02]} 51. Nh2 {[%clk 0:00:24]}  Be2 {[%clk 0:00:03]} 52. Kf4 {[%clk 0:00:20]}  Bd3 {[%clk 0:00:02]} 53. e5 {[%clk 0:00:19]}  h3 {[%clk 0:00:03]} 54. g6+ {[%clk 0:00:18]}  Ke7 {[%clk 0:00:02]} 55. Kg5 {[%clk 0:00:18]}  Bc2 {[%clk 0:00:03]} 56. f6+ {[%clk 0:00:17]}  Ke6 {[%clk 0:00:04]} 57. f7 {[%clk 0:00:07]}  Ke7 {[%clk 0:00:04]} 58. Kh6 {[%clk 0:00:06]}  Kf8 {[%clk 0:00:04]} 59. Kg5 {[%clk 0:00:07]}  Kg7 {[%clk 0:00:04]} 60. e6 {[%clk 0:00:07]}  Bxg6 {[%clk 0:00:04]} 61. Kg4 {[%clk 0:00:06]}  Be4 {[%clk 0:00:03]} 62. Kxh3 {[%clk 0:00:04]}  Bf5+ {[%clk 0:00:04]} 63. Kg3 {[%clk 0:00:05]}  Bxe6 {[%clk 0:00:04]} 64. Kf4 {[%clk 0:00:06]}  Kxf7 {[%clk 0:00:05]} 65. Ke5 {[%clk 0:00:07]}  Ke7 {[%clk 0:00:06]} 66. Nf3 {[%clk 0:00:07]}  Bd5 {[%clk 0:00:06]} 67. Ng5 {[%clk 0:00:07]}  Kd7 {[%clk 0:00:06]} 68. Nh7 {[%clk 0:00:07]}  Ke7 {[%clk 0:00:06]} 69. Nf6 {[%clk 0:00:08]}  Be6 {[%clk 0:00:06]} 70. Ne4 {[%clk 0:00:08]}  Bg4 {[%clk 0:00:05]} 71. Ng5 {[%clk 0:00:09]}  Bd1 {[%clk 0:00:05]} 72. Ne4 {[%clk 0:00:09]}  Bb3 {[%clk 0:00:05]} 73. Nd6 {[%clk 0:00:10]}  Kd7 {[%clk 0:00:05]} 74. Ne4 {[%clk 0:00:09]}  Kc7 {[%clk 0:00:06]} 75. Nf6 {[%clk 0:00:08]}  Bc4 {[%clk 0:00:05]} 76. Ne8+ {[%clk 0:00:09]}  Kd7 {[%clk 0:00:05]} 77. Nf6+ {[%clk 0:00:09]}  Ke7 {[%clk 0:00:06]} 78. Ne4 {[%clk 0:00:09]}  Bf1 {[%clk 0:00:05]} 79. Nd6 {[%clk 0:00:09]}  Kd7 {[%clk 0:00:05]} 80. Ne4 {[%clk 0:00:09]}  Kc7 {[%clk 0:00:05]} 81. Nf6 {[%clk 0:00:10]}  Bg2 {[%clk 0:00:05]} 82. Ne8+ {[%clk 0:00:10]}  Kd7 {[%clk 0:00:05]} 83. Nf6+ {[%clk 0:00:11]}  Kc7 {[%clk 0:00:05]} 84. Ne8+ {[%clk 0:00:11]}  Kb7 {[%clk 0:00:06]} 85. Kd6 {[%clk 0:00:10]}  Ka6 {[%clk 0:00:07]} 86. Nc7+ {[%clk 0:00:08]}  Ka5 {[%clk 0:00:06]} 87. Ke5 {[%clk 0:00:06]}  b5 {[%clk 0:00:06]} 88. Kd6 {[%clk 0:00:05]}  Kb6 {[%clk 0:00:06]} 89. Ne6 {[%clk 0:00:04]}  b4 {[%clk 0:00:04]} 90. Nxc5 {[%clk 0:00:03]}  bxa3 {[%clk 0:00:03]} 91. bxa3 {[%clk 0:00:02]}  Kb5 {[%clk 0:00:04]} 92. Nd3 {[%clk 0:00:01]}  Kc4 {[%clk 0:00:03]} 93. Nc5 {[%clk 0:00:02]}  Kb5 {[%clk 0:00:02]} 94. Nd3 {[%clk 0:00:03]}  Bh1 {[%clk 0:00:02]} 95. Nc5 {[%clk 0:00:02]}  Bd5 {[%clk 0:00:01]} 96. Nd3 {[%clk 0:00:02]}  Bb3 {[%clk 0:00:02]} 97. Nc5 {[%clk 0:00:00]}  Kc4 {[%clk 0:00:02]} 0-1

[Event "December 12 Late 2023"]
[Site "https://www.chess.com"]
[Date "2023.12.12"]
[Round "7"]
[White "Gubajdullin, Alexei"]
[Black "Volodin, Aleksandr"]
[Result "0-1"]
[Board "30"]
[TimeControl "180+1"]
[WhiteFideId "4141202"]
[BlackFideId "4501950"]
[WhiteElo "2639"]
[BlackElo "2796"]
[WhiteTeam "RUS"]
[BlackTeam "EST"]
[WhiteClock "0:00:38"]
[BlackClock "0:00:11"]

1. e4 {[%clk 0:03:00]}  c5 {[%clk 0:02:59]} 2. Nf3 {[%clk 0:02:59]}  d6 {[%clk 0:02:59]} 3. Nc3 {[%clk 0:02:59]}  a6 {[%clk 0:02:57]} 4. g3 {[%clk 0:02:56]}  b5 {[%clk 0:02:56]} 5. Bg2 {[%clk 0:02:56]}  Bb7 {[%clk 0:02:56]} 6. d3 {[%clk 0:02:57]}  e6 {[%clk 0:02:56]} 7. O-O {[%clk 0:02:56]}  Nd7 {[%clk 0:02:56]} 8. Ng5 {[%clk 0:02:55]}  Be7 {[%clk 0:02:53]} 9. Nh3 {[%clk 0:02:55]}  Ngf6 {[%clk 0:02:47]} 10. f4 {[%clk 0:02:55]}  Qc7 {[%clk 0:02:47]} 11. Nf2 {[%clk 0:02:51]}  b4 {[%clk 0:02:45]} 12. Ne2 {[%clk 0:02:50]}  a5 {[%clk 0:02:45]} 13. g4 {[%clk 0:02:50]}  h6 {[%clk 0:02:45]} 14. h4 {[%clk 0:02:49]}  Nf8 {[%clk 0:02:22]} 15. g5 {[%clk 0:02:48]}  hxg5 {[%clk 0:02:15]} 16. hxg5 {[%clk 0:02:48]}  Nh5 {[%clk 0:02:14]} 17. a3 {[%clk 0:02:48]}  Ng6 {[%clk 0:02:08]} 18. Be3 {[%clk 0:02:20]}  d5 {[%clk 0:01:58]} 19. Ng4 {[%clk 0:01:56]}  dxe4 {[%clk 0:01:39]} 20. dxe4 {[%clk 0:01:56]}  Rd8 {[%clk 0:01:23]} 21. Qe1 {[%clk 0:01:55]}  Bc6 {[%clk 0:01:08]} 22. Qf2 {[%clk 0:01:46]}  Qb7 {[%clk 0:01:07]} 23. axb4 {[%clk 0:01:34]}  axb4 {[%clk 0:01:02]} 24. f5 {[%clk 0:01:33]}  exf5 {[%clk 0:01:01]} 25. e5 {[%clk 0:01:33]}  Bxg2 {[%clk 0:00:59]} 26. Qxf5 {[%clk 0:01:28]}  Bxf1 {[%clk 0:00:49]} 27. Rxf1 {[%clk 0:01:27]}  O-O {[%clk 0:00:42]} 28. e6 {[%clk 0:01:25]}  Qd5 {[%clk 0:00:28]} 29. exf7+ {[%clk 0:01:17]}  Qxf7 {[%clk 0:00:29]} 30. Nf6+ {[%clk 0:01:01]}  Nxf6 {[%clk 0:00:25]} 31. Qh3 {[%clk 0:00:58]}  Rfe8 {[%clk 0:00:17]} 32. Ng3 {[%clk 0:00:57]}  Rd5 {[%clk 0:00:12]} 33. Qg2 {[%clk 0:00:51]}  Re5 {[%clk 0:00:12]} 34. Bc1 {[%clk 0:00:50]}  c4 {[%clk 0:00:10]} 35. Qc6 {[%clk 0:00:47]}  Bc5+ {[%clk 0:00:09]} 36. Kh2 {[%clk 0:00:46]}  Qe6 {[%clk 0:00:10]} 37. Qb5 {[%clk 0:00:43]}  Ng4+ {[%clk 0:00:10]} 38. Kh1 {[%clk 0:00:38]}  Qd5+ {[%clk 0:00:11]} 0-1

[Event "December 12 Late 2023"]
[Site "https://www.chess.com"]
[Date "2023.12.12"]
[Round "7"]
[White "Golubev, Mikhail"]
[Black "Yuan, Qingyu"]
[Result "0-1"]
[Board "33"]
[TimeControl "180+1"]
[WhiteFideId "14100983"]
[BlackFideId "8609772"]
[WhiteElo "2625"]
[BlackElo "2782"]
[WhiteTeam "UKR"]
[BlackTeam "CHN"]
[WhiteClock "0:00:04"]
[BlackClock "0:00:16"]

1. e4 {[%clk 0:03:00]}  e5 {[%clk 0:02:59]} 2. Nf3 {[%clk 0:03:00]}  Nc6 {[%clk 0:03:00]} 3. Bc4 {[%clk 0:03:00]}  Bc5 {[%clk 0:03:00]} 4. c3 {[%clk 0:02:59]}  Nf6 {[%clk 0:03:00]} 5. d4 {[%clk 0:02:59]}  exd4 {[%clk 0:03:00]} 6. cxd4 {[%clk 0:03:00]}  Bb4+ {[%clk 0:03:01]} 7. Nbd2 {[%clk 0:03:01]}  Nxe4 {[%clk 0:03:01]} 8. d5 {[%clk 0:03:01]}  Ne7 {[%clk 0:02:58]} 9. O-O {[%clk 0:03:00]}  Nxd2 {[%clk 0:02:55]} 10. Nxd2 {[%clk 0:03:01]}  O-O {[%clk 0:02:51]} 11. Ne4 {[%clk 0:02:57]}  d6 {[%clk 0:02:50]} 12. Qb3 {[%clk 0:02:33]}  Bc5 {[%clk 0:02:39]} 13. Bg5 {[%clk 0:02:28]}  Bb6 {[%clk 0:02:18]} 14. Nf6+ {[%clk 0:02:06]}  gxf6 {[%clk 0:01:58]} 15. Bxf6 {[%clk 0:02:07]}  Qd7 {[%clk 0:01:58]} 16. Bb5 {[%clk 0:01:04]}  c6 {[%clk 0:01:57]} 17. dxc6 {[%clk 0:01:03]}  bxc6 {[%clk 0:01:57]} 18. Bxc6 {[%clk 0:00:34]}  Nxc6 {[%clk 0:01:45]} 19. Qd5 {[%clk 0:00:29]}  Qf5 {[%clk 0:01:09]} 20. Qxc6 {[%clk 0:00:27]}  Qxf6 {[%clk 0:00:57]} 21. Qxa8 {[%clk 0:00:26]}  Ba6 {[%clk 0:00:58]} 22. Qd5 {[%clk 0:00:22]}  Bxf1 {[%clk 0:00:56]} 23. Rxf1 {[%clk 0:00:22]}  Qxb2 {[%clk 0:00:50]} 24. Qxd6 {[%clk 0:00:22]}  Qxa2 {[%clk 0:00:42]} 25. h4 {[%clk 0:00:21]}  f6 {[%clk 0:00:36]} 26. Qf4 {[%clk 0:00:18]}  Qf7 {[%clk 0:00:31]} 27. Rd1 {[%clk 0:00:17]}  Rd8 {[%clk 0:00:29]} 28. Rc1 {[%clk 0:00:15]}  Qg6 {[%clk 0:00:18]} 29. Rc3 {[%clk 0:00:13]}  Kh8 {[%clk 0:00:17]} 30. Rg3 {[%clk 0:00:12]}  Qf7 {[%clk 0:00:17]} 31. Kh2 {[%clk 0:00:04]}  Bc7 {[%clk 0:00:16]} 0-1

[Event "December 12 Late 2023"]
[Site "https://www.chess.com"]
[Date "2023.12.12"]
[Round "7"]
[White "Olsen, Filip Boe"]
[Black "Troff, Kayden"]
[Result "0-1"]
[Board "34"]
[TimeControl "180+1"]
[WhiteFideId "1440640"]
[BlackFideId "2047896"]
[WhiteElo "2619"]
[BlackElo "2779"]
[WhiteTeam "DEN"]
[BlackTeam "USA"]
[WhiteClock "0:00:15"]
[BlackClock "0:00:10"]

1. Nf3 {[%clk 0:03:00]}  Nf6 {[%clk 0:02:59]} 2. b3 {[%clk 0:03:01]}  g6 {[%clk 0:02:59]} 3. Bb2 {[%clk 0:03:01]}  Bg7 {[%clk 0:03:00]} 4. c4 {[%clk 0:03:00]}  O-O {[%clk 0:03:00]} 5. e3 {[%clk 0:03:00]}  e6 {[%clk 0:03:00]} 6. Be2 {[%clk 0:02:59]}  d5 {[%clk 0:03:00]} 7. O-O {[%clk 0:02:59]}  b6 {[%clk 0:03:00]} 8. Nc3 {[%clk 0:02:59]}  Bb7 {[%clk 0:03:01]} 9. Rc1 {[%clk 0:02:59]}  dxc4 {[%clk 0:02:56]} 10. Bxc4 {[%clk 0:02:47]}  c5 {[%clk 0:02:51]} 11. d4 {[%clk 0:02:39]}  cxd4 {[%clk 0:02:46]} 12. Nxd4 {[%clk 0:02:38]}  Nc6 {[%clk 0:02:39]} 13. Ncb5 {[%clk 0:02:32]}  Nxd4 {[%clk 0:01:45]} 14. Qxd4 {[%clk 0:02:20]}  a6 {[%clk 0:01:44]} 15. Nd6 {[%clk 0:02:16]}  Bd5 {[%clk 0:00:54]} 16. Bxd5 {[%clk 0:02:04]}  exd5 {[%clk 0:00:54]} 17. Nb7 {[%clk 0:01:47]}  Qe7 {[%clk 0:00:44]} 18. Qxb6 {[%clk 0:01:43]}  Nd7 {[%clk 0:00:43]} 19. Ba3 {[%clk 0:00:36]}  Qxa3 {[%clk 0:00:38]} 20. Qc7 {[%clk 0:00:34]}  Ne5 {[%clk 0:00:27]} 21. Rfd1 {[%clk 0:00:25]}  Qxa2 {[%clk 0:00:25]} 22. h3 {[%clk 0:00:24]}  Qxb3 {[%clk 0:00:23]} 23. Nc5 {[%clk 0:00:22]}  Qb8 {[%clk 0:00:21]} 24. Qa5 {[%clk 0:00:22]}  Nc4 {[%clk 0:00:20]} 25. Qa2 {[%clk 0:00:22]}  Qb2 {[%clk 0:00:20]} 26. Qa4 {[%clk 0:00:20]}  Qb5 {[%clk 0:00:20]} 27. Qc2 {[%clk 0:00:20]}  Qxc5 {[%clk 0:00:20]} 28. e4 {[%clk 0:00:20]}  Rac8 {[%clk 0:00:18]} 29. exd5 {[%clk 0:00:20]}  Rfd8 {[%clk 0:00:18]} 30. d6 {[%clk 0:00:20]}  Rxd6 {[%clk 0:00:17]} 31. Re1 {[%clk 0:00:20]}  Rdd8 {[%clk 0:00:17]} 32. Qe2 {[%clk 0:00:20]}  Bd4 {[%clk 0:00:17]} 33. Qf3 {[%clk 0:00:20]}  Qf5 {[%clk 0:00:17]} 34. Qg3 {[%clk 0:00:20]}  Ne5 {[%clk 0:00:16]} 35. Rcd1 {[%clk 0:00:19]}  Nd3 {[%clk 0:00:12]} 36. Re2 {[%clk 0:00:16]}  Nxf2 {[%clk 0:00:12]} 37. Rxd4 {[%clk 0:00:15]}  Rc1+ {[%clk 0:00:10]} 38. Kh2 {[%clk 0:00:15]}  Rh1# {[%clk 0:00:10]} 0-1